fUSD/lending_fUSD_20240725
["ID","MTS","AMOUNT","RATE_DAILY","PERIOD"]
[333155521,1721893848784,-500.0,0.00010958,2]
[333155524,1721893848794,-350.56,0.00010958,2]
[333155525,1721893848804,-500.0,0.00010958,2]
[333155527,1721893848815,-500.0,0.00010958,2]
[333155529,1721893848825,-500.0,0.00010958,2]
[333155531,1721893848834,-500.26972111,0.00010958,2]
[333155533,1721893848843,-512.46,0.00010958,2]
[333155535,1721893848853,-512.46,0.00010958,2]
[333155537,1721893848862,-512.46,0.00010958,2]
[333155539,1721893848873,-508.02,0.00010958,2]
[333155541,1721893848883,-508.02,0.00010958,2]
[333155543,1721893848893,-610.53,0.00010958,2]
[333155545,1721893848902,-508.02,0.00010958,2]
[333155547,1721893848912,-552.33,0.00010958,2]
[333155549,1721893848922,-552.33,0.00010958,2]
[333155551,1721893848932,-500.0,0.00010958,2]
[333155553,1721893848941,-500.0,0.00010958,2]
[333155555,1721893848951,-500.0,0.00010958,2]
[333155557,1721893848960,-272.7,0.00010958,2]
[333155559,1721893848971,-500.0,0.00010958,2]
[333155561,1721893848980,-500.0,0.00010958,2]
[333155563,1721893848990,-500.0,0.00010958,2]
[333155565,1721893849002,-632.88,0.00010958,2]
[333155567,1721893849013,-500.0,0.00010958,2]
[333155569,1721893849024,-500.0,0.00010958,2]
[333155571,1721893849034,-632.88,0.00010958,2]
[333155573,1721893849043,-500.0,0.00010958,2]
[333155575,1721893849054,-500.0,0.00010958,2]
[333155577,1721893849064,-500.0,0.00010958,2]
[333155579,1721893849074,-500.0,0.00010958,2]
[333155581,1721893849084,-500.0,0.00010958,2]
[333155583,1721893849094,-500.0,0.00010958,2]
[333155585,1721893849105,-500.0,0.00010958,2]
[333155587,1721893849114,-500.0,0.00010958,2]
[333155589,1721893849124,-500.0,0.00010958,2]
[333155591,1721893849134,-500.0,0.00010958,2]
[333155593,1721893849144,-500.0,0.00010958,2]
[333155595,1721893849153,-500.0,0.00010958,2]
[333155597,1721893849163,-863.5,0.00010958,2]
[333155599,1721893849173,-500.0,0.00010958,2]
[333155601,1721893849182,-556.58,0.00010958,2]
[333155603,1721893849192,-500.0,0.00010958,2]
[333155605,1721893849202,-548.48,0.00010958,2]
[333155607,1721893849212,-500.0,0.00010958,2]
[333155609,1721893849222,-500.0,0.00010958,2]
[333155611,1721893849234,-500.0,0.00010958,2]
[333155613,1721893849244,-500.0,0.00010958,2]
[333155615,1721893849254,-500.0,0.00010958,2]
[333155617,1721893849264,-500.0,0.00010958,2]
[333155619,1721893849273,-500.0,0.00010958,2]
[333155621,1721893849283,-500.0,0.00010958,2]
[333155623,1721893849293,-500.0,0.00010958,2]
[333155625,1721893849303,-500.0,0.00010958,2]
[333155627,1721893849313,-500.0,0.00010958,2]
[333155629,1721893849322,-500.0,0.00010958,2]
[333155631,1721893849333,-500.0,0.00010958,2]
[333155633,1721893849343,-500.0,0.00010958,2]
[333155635,1721893849354,-1002.12,0.00010958,2]
[333155637,1721893849364,-500.0,0.00010958,2]
[333155639,1721893849375,-500.0,0.00010958,2]
[333155641,1721893849384,-1002.12,0.00010958,2]
[333155643,1721893849394,-541.29,0.00010958,2]
[333155645,1721893849404,-1002.12,0.00010958,2]
[333155648,1721893849418,-541.29,0.00010958,2]
[333155650,1721893849429,-500.0,0.00010958,2]
[333155652,1721893849439,-541.29,0.00010958,2]
[333155654,1721893849450,-505.52,0.00010958,2]
[333155656,1721893849461,-707.94,0.00010958,2]
[333155658,1721893849471,-500.0,0.00010958,2]
[333155660,1721893849481,-591.05385238,0.00010958,2]
[333155662,1721893849491,-792.45,0.00010958,2]
[333155664,1721893849502,-500.0,0.00010958,2]
[333155666,1721893849513,-500.0,0.00010958,2]
[333155668,1721893849524,-846.33,0.00010958,2]
[333155670,1721893849534,-500.0,0.00010958,2]
[333155672,1721893849544,-500.0,0.00010958,2]
[333155674,1721893849555,-500.0,0.00010958,2]
[333155676,1721893849566,-531.18,0.00010958,2]
[333155678,1721893849576,-500.0,0.00010958,2]
[333155680,1721893849587,-531.18,0.00010958,2]
[333155682,1721893849598,-531.18,0.00010958,2]
[333155684,1721893849608,-500.0,0.00010958,2]
[333155686,1721893849619,-500.0,0.00010958,2]
[333155688,1721893849629,-500.0,0.00010958,2]
[333155690,1721893849639,-500.0,0.00010958,2]
[333155692,1721893849650,-500.0,0.00010958,2]
[333155694,1721893849660,-500.0,0.00010958,2]
[333155696,1721893849670,-500.0,0.00010958,2]
[333155698,1721893849681,-500.0,0.00010958,2]
[333155700,1721893849693,-500.0,0.00010958,2]
[333155701,1721893849703,-500.0,0.00010958,2]
[333155702,1721893849714,-500.0,0.00010958,2]
[333155703,1721893849724,-500.0,0.00010958,2]
[333155704,1721893849734,-500.0,0.00010958,2]
[333155705,1721893849744,-557.66,0.00010958,2]
[333155706,1721893849754,-557.66,0.00010958,2]
[333155707,1721893849765,-500.0,0.00010958,2]
[333155708,1721893849776,-500.0,0.00010958,2]
[333155709,1721893849786,-500.0,0.00010958,2]
[333155710,1721893849797,-198.54,0.00010958,2]
[333155711,1721893849807,-500.0,0.00010958,2]
[333155712,1721893849818,-578.2,0.00010958,2]
[333155713,1721893849828,-500.0,0.00010958,2]
[333155714,1721893849838,-500.0,0.00010958,2]
[333155715,1721893849848,-712.85,0.00010958,2]
[333155716,1721893849859,-712.85,0.00010958,2]
[333155717,1721893849870,-500.0,0.00010958,2]
[333155718,1721893849881,-712.85,0.00010958,2]
[333155719,1721893849891,-500.0,0.00010958,2]
[333155720,1721893849901,-500.0,0.00010958,2]
[333155721,1721893849911,-500.0,0.00010958,2]
[333155722,1721893849921,-500.0,0.00010958,2]
[333155723,1721893849931,-500.0,0.00010958,2]
[333155724,1721893849941,-4484.86,0.00010958,2]
[333155725,1721893849952,-500.0,0.00010958,2]
[333155726,1721893849963,-500.0,0.00010958,2]
[333155727,1721893849973,-3428.66,0.00010958,2]
[333155729,1721893849983,-500.0,0.00010958,2]
[333155731,1721893849994,-500.0,0.00010958,2]
[333155733,1721893850004,-475.00000001,0.00010958,2]
[333155735,1721893850015,-500.0,0.00010958,2]
[333155737,1721893850024,-500.0,0.00010958,2]
[333155739,1721893850035,-500.0,0.00010958,2]
[333155740,1721893850045,-500.0,0.00010958,2]
[333155743,1721893850056,-500.0,0.00010958,2]
[333155745,1721893850067,-500.0,0.00010958,2]
[333155747,1721893850078,-980.53,0.00010958,2]
[333155749,1721893850089,-500.0,0.00010958,2]
[333155751,1721893850099,-980.53,0.00010958,2]
[333155753,1721893850108,-500.0,0.00010958,2]
[333155755,1721893850118,-500.0,0.00010958,2]
[333155757,1721893850128,-500.0,0.00010958,2]
[333155759,1721893850138,-500.0,0.00010958,2]
[333155761,1721893850148,-500.0,0.00010958,2]
[333155781,1721893850335,-500.0,0.00010958,2]
[333155783,1721893850345,-500.0,0.00010958,2]
[333155785,1721893850356,-500.0,0.00010958,2]
[333155787,1721893850365,-500.0,0.00010958,2]
[333155789,1721893850375,-324.41,0.00010958,2]
[333155791,1721893850384,-500.0,0.00010958,2]
[333155793,1721893850394,-500.0,0.00010958,2]
[333155795,1721893850403,-500.0,0.00010958,2]
[333155797,1721893850412,-500.0,0.00010958,2]
[333155799,1721893850421,-500.0,0.00010958,2]
[333155801,1721893850430,-1166.77,0.00010958,2]
[333155803,1721893850439,-492.08,0.00010958,2]
[333155805,1721893850451,-500.0,0.00010958,2]
[333155807,1721893850460,-573.94,0.00010958,2]
[333155809,1721893850470,-500.0,0.00010958,2]
[333155811,1721893850479,-500.0,0.00010958,2]
[333155813,1721893850489,-504.43,0.00010958,2]
[333155815,1721893850498,-504.43,0.00010958,2]
[333155817,1721893850507,-504.43,0.00010958,2]
[333155819,1721893850516,-1414.92,0.00010958,2]
[333155821,1721893850526,-500.0,0.00010958,2]
[333155823,1721893850535,-500.0,0.00010958,2]
[333155825,1721893850545,-500.0,0.00010958,2]
[333155827,1721893850554,-500.0,0.00010958,2]
[333155829,1721893850564,-500.0,0.00010958,2]
[333155831,1721893850573,-500.0,0.00010958,2]
[333155833,1721893850583,-500.0,0.00010958,2]
[333155835,1721893850593,-513.08,0.00010958,2]
[333155837,1721893850602,-513.08,0.00010958,2]
[333155839,1721893850611,-346.70371969,0.00010958,2]
[333155841,1721893850621,-588.03850805,0.00010958,2]
[333155843,1721893850630,-500.0,0.00010958,2]
[333155845,1721893850639,-1130.16,0.00010958,2]
[333155847,1721893850648,-1130.16,0.00010958,2]
[333155849,1721893850657,-500.0,0.00010958,2]
[333155851,1721893850666,-1130.16,0.00010958,2]
[333155853,1721893850675,-500.0,0.00010958,2]
[333155855,1721893850685,-500.0,0.00010958,2]
[333155857,1721893850695,-500.0,0.00010958,2]
[333155859,1721893850704,-500.0,0.00010958,2]
[333155861,1721893850713,-500.0,0.00010958,2]
[333155863,1721893850722,-500.0,0.00010958,2]
[333155865,1721893850733,-500.0,0.00010958,2]
[333155867,1721893850742,-500.0,0.00010958,2]
[333155869,1721893850751,-500.0,0.00010958,2]
[333155871,1721893850760,-500.0,0.00010958,2]
[333155873,1721893850775,-796.08,0.00010958,2]
[333155875,1721893850784,-500.0,0.00010958,2]
[333155877,1721893850793,-506.98677755,0.00010958,2]
[333155879,1721893850802,-500.0,0.00010958,2]
[333155881,1721893850813,-3144.64,0.00010958,2]
[333155882,1721893850822,-500.0,0.00010958,2]
[333155884,1721893850831,-500.0,0.00010958,2]
[333155886,1721893850841,-3144.64,0.00010958,2]
[333155888,1721893850851,-500.0,0.00010958,2]
[333155890,1721893850862,-500.0,0.00010958,2]
[333155892,1721893850871,-500.0,0.00010958,2]
[333155895,1721893850882,-500.0,0.00010958,2]
[333155897,1721893850893,-748.95,0.00010958,2]
[333155898,1721893850902,-500.0,0.00010958,2]
[333155900,1721893850911,-500.0,0.00010958,2]
[333155902,1721893850921,-500.0,0.00010958,2]
[333155904,1721893850931,-500.0,0.00010958,2]
[333155906,1721893850941,-500.0,0.00010958,2]
[333155908,1721893850951,-500.0,0.00010958,2]
[333155910,1721893850960,-500.0,0.00010958,2]
[333155912,1721893850969,-500.0,0.00010958,2]
[333155914,1721893850979,-500.0,0.00010958,2]
[333155916,1721893850988,-500.0,0.00010958,2]
[333155918,1721893850998,-500.0,0.00010958,2]
[333155920,1721893851008,-500.0,0.00010958,2]
[333155922,1721893851018,-1001.84,0.00010958,2]
[333155924,1721893851027,-500.0,0.00010958,2]
[333155925,1721893851037,-1001.84,0.00010958,2]
[333155927,1721893851047,-500.0,0.00010958,2]
[333155929,1721893851056,-823.78,0.00010958,2]
[333155931,1721893851066,-823.78,0.00010958,2]
[333155933,1721893851075,-500.0,0.00010958,2]
[333155935,1721893851084,-1008.43,0.00010958,2]
[333155937,1721893851094,-823.78,0.00010958,2]
[333155939,1721893851103,-500.0,0.00010958,2]
[333155941,1721893851112,-250.0,0.00010959,2]
[333155943,1721893851121,-175.69234993,0.0001097,2]
[333155945,1721893851132,-200.67765462,0.0001097,4]
[333155946,1721893851142,-183.17896349,0.0001097,2]
[333155948,1721893851151,-2206.93168191,0.0001097,2]
[333155950,1721893851161,-176.92666474,0.0001097,2]
[333155952,1721893851170,-500.0,0.00010983,2]
[333155954,1721893851179,-500.0,0.00010983,2]
[333155955,1721893851188,-500.0,0.00010983,2]
[333155957,1721893851198,-508.02,0.00010983,2]
[333155959,1721893851207,-500.0,0.00010983,2]
[333155961,1721893851216,-1002.12,0.00010983,2]
[333155963,1721893851227,-531.18,0.00010983,2]
[333155965,1721893851237,-712.85,0.00010983,2]
[333155967,1721893851246,-500.0,0.00010983,2]
[333155969,1721893851256,-500.0,0.00010983,2]
[333155970,1721893851265,-500.0,0.00010983,2]
[333155972,1721893851274,-240.28,0.00010983,2]
[333155974,1721893851283,-500.0,0.00010983,2]
[333155976,1721893851292,-500.0,0.00010983,2]
[333155978,1721893851302,-500.0,0.00010983,2]
[333155980,1721893851312,-856.23,0.00010984,2]
[333155982,1721893851321,-504.67,0.00010984,2]
[333155984,1721893851330,-500.0,0.00010984,2]
[333155986,1721893851341,-500.0,0.00010984,2]
[333155988,1721893851350,-500.0,0.00010984,2]
[333155990,1721893851360,-500.0,0.00010984,2]
[333155991,1721893851369,-500.0,0.00010984,2]
[333155993,1721893851378,-230.06,0.00010984,2]
[333155995,1721893851387,-500.0,0.00010984,2]
[333155997,1721893851397,-598.96,0.00010984,2]
[333155999,1721893851407,-500.0,0.00010984,2]
[333156000,1721893851416,-389.49,0.00010984,2]
[333156002,1721893851427,-500.0,0.00010984,2]
[333156004,1721893851436,-500.0,0.00010984,2]
[333156006,1721893851445,-500.0,0.00010984,2]
[333156008,1721893851454,-195.4,0.00010984,2]
[333156010,1721893851463,-500.0,0.00010984,2]
[333156011,1721893851472,-500.0,0.00010984,2]
[333156013,1721893851481,-500.0,0.00010984,2]
[333156015,1721893851490,-260.36,0.00010984,2]
[333156017,1721893851500,-500.0,0.00010984,2]
[333156019,1721893851509,-456.76,0.00010984,2]
[333156020,1721893851518,-500.0,0.00010984,2]
[333156022,1721893851529,-500.0,0.00010984,2]
[333156024,1721893851538,-500.0,0.00010984,2]
[333156026,1721893851547,-222.56,0.00010984,2]
[333156028,1721893851556,-194.66,0.00010984,2]
[333156030,1721893851565,-500.0,0.00010984,2]
[333156032,1721893851575,-500.0,0.00010984,2]
[333156034,1721893851585,-621.88,0.00010984,2]
[333156036,1721893851594,-500.0,0.00010984,2]
[333156037,1721893851603,-500.0,0.00010984,2]
[333156039,1721893851612,-500.0,0.00010984,2]
[333156041,1721893851621,-500.0,0.00010984,2]
[333156043,1721893851631,-500.0,0.00010984,2]
[333156045,1721893851640,-500.0,0.00010984,2]
[333156047,1721893851650,-500.0,0.00010984,2]
[333156049,1721893851659,-500.0,0.00010984,2]
[333156051,1721893851668,-500.0,0.00010984,2]
[333156053,1721893851678,-500.0,0.00010984,2]
[333156055,1721893851687,-500.0,0.00010984,2]
[333156056,1721893851697,-500.0,0.00010984,2]
[333156057,1721893851707,-500.0,0.00010984,2]
[333156058,1721893851716,-500.0,0.00010984,2]
[333156059,1721893851725,-500.0,0.00010984,2]
[333156060,1721893851734,-500.0,0.00010984,2]
[333156061,1721893851743,-500.0,0.00010984,2]
[333156062,1721893851753,-500.0,0.00010984,2]
[333156063,1721893851762,-500.0,0.00010984,2]
[333156064,1721893851771,-500.0,0.00010984,2]
[333156065,1721893851784,-500.0,0.00010984,2]
[333156066,1721893851793,-2492.85,0.00010984,2]
[333156067,1721893851802,-500.0,0.00010984,2]
[333156068,1721893851811,-500.0,0.00010984,2]
[333156069,1721893851823,-951.98,0.00010984,2]
[333156070,1721893851832,-358.46598501,0.00010984,2]
[333156071,1721893851841,-500.0,0.00010984,2]
[333156072,1721893851850,-500.0,0.00010984,2]
[333156073,1721893851861,-2926.46,0.00010984,2]
[333156074,1721893851870,-500.0,0.00010984,2]
[333156075,1721893851880,-1323.06,0.00010984,2]
[333156076,1721893851890,-4519.14,0.00010984,2]
[333156077,1721893851899,-500.0,0.00010984,2]
[333156078,1721893851908,-500.0,0.00010984,2]
[333156079,1721893851918,-682.27,0.00010984,2]
[333156080,1721893851928,-500.0,0.00010984,2]
[333156081,1721893851937,-500.0,0.00010984,2]
[333156082,1721893851948,-500.0,0.00010984,2]
[333156083,1721893851958,-1775.63,0.00010984,2]
[333156084,1721893851966,-3178.0,0.00010984,2]
[333156085,1721893851976,-528.28,0.00010984,2]
[333156086,1721893851985,-1598.72,0.00010984,2]
[333156087,1721893851997,-500.0,0.00010984,2]
[333156088,1721893852006,-500.0,0.00010984,2]
[333156089,1721893852016,-655.54,0.00010984,2]
[333156090,1721893852025,-500.0,0.00010984,2]
[333156091,1721893852035,-500.0,0.00010984,2]
[333156092,1721893852045,-500.0,0.00010984,2]
[333156093,1721893852054,-500.0,0.00010984,2]
[333156094,1721893852063,-2112.75,0.00010984,2]
[333156095,1721893852073,-500.0,0.00010984,2]
[333156096,1721893852082,-500.0,0.00010984,2]
[333156097,1721893852091,-2543.34,0.00010984,2]
[333156098,1721893852100,-500.0,0.00010984,2]
[333156099,1721893852109,-500.0,0.00010984,2]
[333156100,1721893852117,-500.0,0.00010984,2]
[333156101,1721893852127,-6981.09,0.00010984,2]
[333156102,1721893852136,-1000.0,0.00010984,2]
[333156103,1721893852145,-500.0,0.00010984,2]
[333156104,1721893852154,-483.53299144,0.00010984,2]
[333156105,1721893852163,-500.0,0.00010984,2]
[333156106,1721893852172,-255.12,0.00010984,2]
[333156107,1721893852182,-2268.86,0.00010984,2]
[333156108,1721893852191,-500.0,0.00010984,2]
[333156109,1721893852201,-3358.14,0.00010984,2]
[333156110,1721893852210,-570.23,0.00010984,2]
[333156111,1721893852219,-500.0,0.00010984,2]
[333156112,1721893852230,-500.0,0.00010984,2]
[333156113,1721893852239,-500.0,0.00010984,2]
[333156114,1721893852248,-500.0,0.00010984,2]
[333156115,1721893852259,-500.0,0.00010984,2]
[333156116,1721893852268,-500.0,0.00010984,2]
[333156117,1721893852277,-500.0,0.00010984,2]
[333156118,1721893852287,-500.0,0.00010984,2]
[333156119,1721893852297,-500.0,0.00010984,2]
[333156120,1721893852308,-592.46,0.00010984,2]
[333156121,1721893852318,-553.39,0.00010984,2]
[333156122,1721893852327,-500.0,0.00010984,2]
[333156123,1721893852339,-5135.62,0.00010984,2]
[333156124,1721893852348,-500.0,0.00010984,2]
[333156125,1721893852358,-500.0,0.00010984,2]
[333156126,1721893852368,-500.0,0.00010984,2]
[333156127,1721893852378,-500.0,0.00010984,2]
[333156128,1721893852387,-500.0,0.00010984,2]
[333156129,1721893852396,-836.46,0.00010984,2]
[333156130,1721893852406,-573.37,0.00010984,2]
[333156131,1721893852416,-577.67,0.00010984,2]
[333156132,1721893852425,-699.55,0.00010984,2]
[333156133,1721893852435,-500.0,0.00010984,2]
[333156134,1721893852445,-500.0,0.00010984,2]
[333156135,1721893852457,-500.0,0.00010984,2]
[333156136,1721893852466,-516.43,0.00010984,2]
[333156137,1721893852476,-500.0,0.00010984,2]
[333156138,1721893852486,-500.0,0.00010984,2]
[333156139,1721893852495,-500.0,0.00010984,2]
[333156140,1721893852505,-500.0,0.00010984,2]
[333156141,1721893852515,-500.0,0.00010984,2]
[333156142,1721893852524,-500.0,0.00010984,2]
[333156143,1721893852534,-610.53,0.00010984,2]
[333156144,1721893852543,-552.33,0.00010984,2]
[333156145,1721893852552,-585.88,0.00010984,2]
[333156146,1721893852562,-632.88,0.00010984,2]
[333156147,1721893852571,-500.0,0.00010984,2]
[333156148,1721893852585,-500.0,0.00010984,2]
[333156149,1721893852595,-500.0,0.00010984,2]
[333156150,1721893852604,-471.02,0.00010984,2]
[333156151,1721893852614,-556.58,0.00010984,2]
[333156152,1721893852623,-500.0,0.00010984,2]
[333156153,1721893852632,-261.52,0.00010984,2]
[333156154,1721893852641,-500.0,0.00010984,2]
[333156155,1721893852650,-500.0,0.00010984,2]
[333156156,1721893852660,-500.0,0.00010984,2]
[333156157,1721893852669,-792.45,0.00010984,2]
[333156158,1721893852678,-500.0,0.00010984,2]
[333156159,1721893852687,-846.33,0.00010984,2]
[333156160,1721893852697,-500.0,0.00010984,2]
[333156161,1721893852706,-500.0,0.00010984,2]
[333156162,1721893852715,-500.0,0.00010984,2]
[333156163,1721893852724,-500.0,0.00010984,2]
[333156164,1721893852734,-557.66,0.00010984,2]
[333156165,1721893852743,-346.98,0.00010984,2]
[333156166,1721893852753,-500.0,0.00010984,2]
[333156167,1721893852763,-500.0,0.00010984,2]
[333156168,1721893852776,-500.0,0.00010984,2]
[333156169,1721893852785,-3428.66,0.00010984,2]
[333156170,1721893852794,-500.0,0.00010984,2]
[333156171,1721893852803,-500.0,0.00010984,2]
[333156172,1721893852814,-980.53,0.00010984,2]
[333156173,1721893852826,-500.0,0.00010984,2]
[333156174,1721893852835,-500.0,0.00010984,2]
[333156175,1721893852847,-500.0,0.00010984,2]
[333156176,1721893852856,-500.0,0.00010984,2]
[333156177,1721893852865,-500.0,0.00010984,2]
[333156178,1721893852876,-500.0,0.00010984,2]
[333156179,1721893852886,-1414.92,0.00010984,2]
[333156180,1721893852895,-500.0,0.00010984,2]
[333156181,1721893852904,-500.0,0.00010984,2]
[333156182,1721893852913,-513.08,0.00010984,2]
[333156183,1721893852923,-500.0,0.00010984,2]
[333156184,1721893852932,-500.0,0.00010984,2]
[333156185,1721893852941,-500.0,0.00010984,2]
[333156186,1721893852951,-500.0,0.00010984,2]
[333156187,1721893852961,-500.0,0.00010984,2]
[333156188,1721893852970,-3144.64,0.00010984,2]
[333156189,1721893852979,-748.95,0.00010984,2]
[333156190,1721893852989,-500.0,0.00010984,2]
[333156191,1721893852999,-500.0,0.00010984,2]
[333156192,1721893853008,-500.0,0.00010984,2]
[333156193,1721893853018,-1001.84,0.00010984,2]
[333156194,1721893853027,-35417.02505626,0.00010985,2]
[333156195,1721893853628,-38126.49300014,0.00010985,2]
[333156196,1721893853638,-5360.1920392,0.00010985,2]
[333156197,1721893853648,-11719.0114477,0.00010985,2]
[333156198,1721893853657,-4327.9372637,0.00010985,2]
[333156199,1721893853667,-6444.00564,0.00010985,2]
[333156200,1721893853676,-220.77861383,0.00010985,2]
[333156201,1721893853685,-448.93569241,0.00010986,2]
[333156202,1721893853694,-300.34418275,0.00010986,2]
[333156203,1721893853704,-1323.06,0.00010986,2]
[333156204,1721893853713,-500.0,0.00010986,2]
[333156205,1721893853722,-682.27,0.00010986,2]
[333156206,1721893853732,-551.09,0.00010986,2]
[333156207,1721893853741,-3178.0,0.00010986,2]
[333156208,1721893853750,-655.54,0.00010986,2]
[333156209,1721893853759,-500.0,0.00010986,2]
[333156210,1721893853769,-3358.14,0.00010986,2]
[333156211,1721893853782,-570.23,0.00010986,2]
[333156212,1721893853791,-500.0,0.00010986,2]
[333156213,1721893853800,-500.0,0.00010986,2]
[333156214,1721893853810,-500.0,0.00010986,2]
[333156215,1721893853819,-500.0,0.00010986,2]
[333156216,1721893853829,-553.39,0.00010986,2]
[333156217,1721893853837,-5135.62,0.00010986,2]
[333156218,1721893853847,-500.0,0.00010986,2]
[333156219,1721893853857,-500.0,0.00010986,2]
[333156220,1721893853866,-500.0,0.00010986,2]
[333156221,1721893853876,-500.0,0.00010986,2]
[333156222,1721893853885,-500.0,0.00010986,2]
[333156223,1721893853894,-500.0,0.00010986,2]
[333156224,1721893853903,-500.0,0.00010986,2]
[333156225,1721893853913,-500.0,0.00010986,2]
[333156226,1721893853922,-573.37,0.00010986,2]
[333156227,1721893853931,-577.67,0.00010986,2]
[333156228,1721893853941,-500.0,0.00010986,2]
[333156229,1721893853950,-500.0,0.00010986,2]
[333156230,1721893853959,-500.0,0.00010986,2]
[333156231,1721893853969,-516.43,0.00010986,2]
[333156232,1721893853978,-500.0,0.00010986,2]
[333156233,1721893853987,-500.0,0.00010986,2]
[333156234,1721893853996,-500.0,0.00010986,2]
[333156235,1721893854005,-500.0,0.00010986,2]
[333156236,1721893854014,-500.0,0.00010986,2]
[333156237,1721893854023,-500.0,0.00010986,2]
[333156238,1721893854032,-291.82,0.00010986,2]
[333156239,1721893854041,-500.0,0.00010986,2]
[333156240,1721893854050,-512.46,0.00010986,2]
[333156241,1721893854059,-512.46,0.00010986,2]
[333156242,1721893854068,-508.02,0.00010986,2]
[333156243,1721893854077,-508.02,0.00010986,2]
[333156244,1721893854086,-552.33,0.00010986,2]
[333156245,1721893854095,-632.88,0.00010986,2]
[333156246,1721893854104,-500.0,0.00010986,2]
[333156247,1721893854113,-500.0,0.00010986,2]
[333156248,1721893854123,-1002.12,0.00010986,2]
[333156249,1721893854132,-1002.12,0.00010986,2]
[333156250,1721893854141,-541.29,0.00010986,2]
[333156251,1721893854150,-541.29,0.00010986,2]
[333156252,1721893854159,-500.0,0.00010986,2]
[333156253,1721893854168,-500.0,0.00010986,2]
[333156254,1721893854177,-531.18,0.00010986,2]
[333156255,1721893854186,-531.18,0.00010986,2]
[333156256,1721893854195,-500.0,0.00010986,2]
[333156257,1721893854204,-557.66,0.00010986,2]
[333156258,1721893854213,-712.85,0.00010986,2]
[333156259,1721893854222,-712.85,0.00010986,2]
[333156260,1721893854231,-500.0,0.00010986,2]
[333156261,1721893854240,-500.0,0.00010986,2]
[333156262,1721893854249,-500.0,0.00010986,2]
[333156263,1721893854259,-980.53,0.00010986,2]
[333156264,1721893854268,-500.0,0.00010986,2]
[333156265,1721893854277,-500.0,0.00010986,2]
[333156266,1721893854286,-500.0,0.00010986,2]
[333156267,1721893854295,-500.0,0.00010986,2]
[333156268,1721893854304,-504.43,0.00010986,2]
[333156269,1721893854313,-504.43,0.00010986,2]
[333156270,1721893854322,-500.0,0.00010986,2]
[333156271,1721893854331,-513.08,0.00010986,2]
[333156272,1721893854340,-1130.16,0.00010986,2]
[333156273,1721893854349,-1130.16,0.00010986,2]
[333156274,1721893854358,-500.0,0.00010986,2]
[333156275,1721893854367,-500.0,0.00010986,2]
[333156276,1721893854376,-3144.64,0.00010986,2]
[333156277,1721893854386,-500.0,0.00010986,2]
[333156278,1721893854394,-500.0,0.00010986,2]